[Event "NJSK 2024 A"]
[Site "Groningen, Netherlands"]
[Date "2024.04.27"]
[Round "1.6"]
[White "Van Hesselingen, Guido"]
[Black "Van de Poel, Jona"]
[Result "1/2-1/2"]
[TimeControl "90min/40moves + 30min + 30sec/move"]
[WhiteElo "2016"]
[BlackElo "1865"]

1. e4 {[%clk 01:30:55]} {[%emt 00:00:03]} c5 {[%clk 01:30:51]} {[%emt
00:00:09]} 2. Nf3 {[%clk 01:31:19]} {[%emt 00:00:07]} e6 {[%clk 01:31:01]}
{[%emt 00:00:20]} 3. d4 {[%clk 01:31:23]} {[%emt 00:00:26]} cxd4 {[%clk
01:31:24]} {[%emt 00:00:05]} 4. Nxd4 {[%clk 01:31:49]} {[%emt 00:00:06]} Nf6
{[%clk 01:31:47]} {[%emt 00:00:05]} 5. Nc3 {[%clk 01:31:27]} {[%emt 00:00:54]}
Nc6 {[%clk 01:31:46]} {[%emt 00:00:31]} 6. Ndb5 {[%clk 01:31:25]} {[%emt
00:00:32]} d6 {[%clk 01:32:02]} {[%emt 00:00:14]} 7. Bf4 {[%clk 01:31:47]}
{[%emt 00:00:07]} e5 {[%clk 01:32:27]} {[%emt 00:00:06]} 8. Bg5 {[%clk
01:32:13]} {[%emt 00:00:03]} a6 {[%clk 01:32:47]} {[%emt 00:00:11]} 9. Na3
{[%clk 01:32:37]} {[%emt 00:00:06]} b5 {[%clk 01:32:07]} {[%emt 00:01:11]} 10.
Nd5 {[%clk 01:32:30]} {[%emt 00:00:36]} Be7 {[%clk 01:32:06]} {[%emt 00:00:31]}
11. Bxf6 {[%clk 01:32:49]} {[%emt 00:00:11]} Bxf6 {[%clk 01:32:29]} {[%emt
00:00:07]} 12. c3 {[%clk 01:33:05]} {[%emt 00:00:14]} O-O {[%clk 01:32:04]}
{[%emt 00:00:54]} 13. h4 {[%clk 01:31:54]} {[%emt 00:01:41]} Ne7 {[%clk
01:25:40]} {[%emt 00:06:54]} 14. Nxf6+ {[%clk 01:26:34]} {[%emt 00:05:51]} gxf6
{[%clk 01:25:49]} {[%emt 00:00:21]} 15. Bd3 {[%clk 01:14:45]} {[%emt 00:12:19]}
f5 {[%clk 01:10:28]} {[%emt 00:15:51]} 16. exf5 {[%clk 00:59:53]} {[%emt
00:15:21]} Bxf5 {[%clk 01:09:22]} {[%emt 00:01:36]} 17. Bxf5 {[%clk 00:59:30]}
{[%emt 00:00:53]} Nxf5 {[%clk 01:09:45]} {[%emt 00:00:07]} 18. Qd3 {[%clk
00:53:43]} {[%emt 00:06:18]} Qf6 {[%clk 00:59:32]} {[%emt 00:10:43]} 19. Nc2
{[%clk 00:43:12]} {[%emt 00:11:00]} Nxh4 {[%clk 00:43:55]} {[%emt 00:16:07]} 20.
Qh3 {[%clk 00:33:14]} {[%emt 00:10:27]} Qf5 {[%clk 00:44:05]} {[%emt 00:00:21]}
21. O-O-O {[%clk 00:33:01]} {[%emt 00:00:43]} Qxh3 {[%clk 00:42:26]} {[%emt
00:02:09]} 22. Rxh3 {[%clk 00:33:26]} {[%emt 00:00:05]} Ng6 {[%clk 00:40:26]}
{[%emt 00:02:30]} 23. Rxd6 {[%clk 00:29:25]} {[%emt 00:04:31]} Nf4 {[%clk
00:38:19]} {[%emt 00:02:37]} 24. Re3 {[%clk 00:25:35]} {[%emt 00:04:20]} Rad8
{[%clk 00:33:23]} {[%emt 00:05:26]} 25. Rxd8 {[%clk 00:21:51]} {[%emt
00:04:14]} Rxd8 {[%clk 00:33:48]} {[%emt 00:00:06]} 26. Nb4 {[%clk 00:21:58]}
{[%emt 00:00:23]} f6 {[%clk 00:30:06]} {[%emt 00:04:12]} 27. Kc2 {[%clk
00:17:08]} {[%emt 00:05:20]} Kf7 {[%clk 00:23:21]} {[%emt 00:07:15]} 28. Nxa6
{[%clk 00:15:02]} {[%emt 00:02:36]} Nxg2 {[%clk 00:23:26]} {[%emt 00:00:24]} 29.
Rh3 {[%clk 00:14:00]} {[%emt 00:01:32]} Ne1+ {[%clk 00:18:47]} {[%emt
00:05:10]} 30. Kb3 {[%clk 00:14:25]} {[%emt 00:00:05]} Kg6 {[%clk 00:16:31]}
{[%emt 00:02:46]} 31. Nc5 {[%clk 00:11:21]} {[%emt 00:03:35]} Rd2 {[%clk
00:13:31]} {[%emt 00:03:29]} 32. Re3 {[%clk 00:10:41]} {[%emt 00:01:08]} Nc2
{[%clk 00:12:47]} {[%emt 00:01:15]} 33. Rg3+ {[%clk 00:09:08]} {[%emt
00:02:04]} Kf7 {[%clk 00:11:10]} {[%emt 00:02:06]} 34. Rf3 {[%clk 00:02:48]}
{[%emt 00:06:50]} Na1+ {[%clk 00:09:41]} {[%emt 00:02:00]} 35. Ka3 {[%clk
00:03:08]} {[%emt 00:00:10]} Nc2+ {[%clk 00:10:05]} {[%emt 00:00:06]} 36. Kb3
{[%clk 00:03:34]} {[%emt 00:00:04]} Na1+ {[%clk 00:10:31]} {[%emt 00:00:03]} 37.
Ka3 {[%clk 00:03:34]} {[%emt 00:00:31]} 1/2-1/2

[Event "NJSK 2024 A"]
[Site "Groningen, Netherlands"]
[Date "2024.04.27"]
[Round "1.7"]
[White "Leorato, Imanol"]
[Black "Khatniuk, Anastasiia"]
[Result "0-1"]
[TimeControl "90min/40moves + 30min + 30sec/move"]
[WhiteElo "1837"]
[BlackElo "2012"]

1. e4 {[%clk 01:30:44]} {[%emt 00:00:14]} c5 {[%clk 01:30:50]} {[%emt
00:00:12]} 2. Nf3 {[%clk 01:31:01]} {[%emt 00:00:12]} e6 {[%clk 01:31:14]}
{[%emt 00:00:07]} 3. d4 {[%clk 01:31:15]} {[%emt 00:00:16]} cxd4 {[%clk
01:31:38]} {[%emt 00:00:07]} 4. Nxd4 {[%clk 01:31:30]} {[%emt 00:00:12]} a6
{[%clk 01:32:03]} {[%emt 00:00:07]} 5. Bd3 {[%clk 01:31:43]} {[%emt 00:00:17]}
Bc5 {[%clk 01:32:21]} {[%emt 00:00:12]} 6. Nb3 {[%clk 01:31:59]} {[%emt
00:00:13]} Ba7 {[%clk 01:32:45]} {[%emt 00:00:07]} 7. Nc3 {[%clk 01:31:27]}
{[%emt 00:01:01]} Nc6 {[%clk 01:32:31]} {[%emt 00:00:44]} 8. Qe2 {[%clk
01:29:42]} {[%emt 00:02:16]} Nge7 {[%clk 01:30:19]} {[%emt 00:02:42]} 9. Bg5
{[%clk 01:18:56]} {[%emt 00:11:16]} Qc7 {[%clk 01:23:48]} {[%emt 00:07:01]} 10.
O-O-O {[%clk 01:16:16]} {[%emt 00:03:08]} d6 {[%clk 01:17:44]} {[%emt
00:06:35]} 11. Rhe1 {[%clk 01:06:46]} {[%emt 00:10:00]} h6 {[%clk 01:11:50]}
{[%emt 00:06:25]} 12. Be3 {[%clk 01:05:28]} {[%emt 00:01:47]} b5 {[%clk
01:10:44]} {[%emt 00:01:36]} 13. Bxb5 {[%clk 00:47:25]} {[%emt 00:18:33]} axb5
{[%clk 00:57:19]} {[%emt 00:13:55]} 14. Nxb5 {[%clk 00:47:32]} {[%emt
00:00:23]} Qb8 {[%clk 00:56:49]} {[%emt 00:00:59]} 15. Nxd6+ {[%clk 00:44:43]}
{[%emt 00:03:21]} Kf8 {[%clk 00:53:40]} {[%emt 00:03:38]} 16. Qh5 {[%clk
00:39:23]} {[%emt 00:05:49]} Ng6 {[%clk 00:47:51]} {[%emt 00:06:19]} 17. f4
{[%clk 00:34:30]} {[%emt 00:05:24]} Bxe3+ {[%clk 00:35:37]} {[%emt 00:12:45]}
18. Rxe3 {[%clk 00:34:24]} {[%emt 00:00:36]} Kg8 {[%clk 00:24:49]} {[%emt
00:11:17]} 19. Rg3 {[%clk 00:22:20]} {[%emt 00:12:35]} Nce7 {[%clk 00:22:11]}
{[%emt 00:03:09]} 20. f5 {[%clk 00:18:57]} {[%emt 00:03:52]} exf5 {[%clk
00:09:24]} {[%emt 00:13:17]} 21. exf5 {[%clk 00:18:57]} {[%emt 00:00:30]} Ne5
{[%clk 00:07:50]} {[%emt 00:02:03]} 22. f6 {[%clk 00:18:45]} {[%emt 00:00:43]}
N7g6 {[%clk 00:07:07]} {[%emt 00:01:13]} 23. fxg7 {[%clk 00:09:14]} {[%emt
00:10:01]} Rh7 {[%clk 00:06:19]} {[%emt 00:01:18]} 24. Nxf7 {[%clk 00:06:14]}
{[%emt 00:03:30]} Nxf7 {[%clk 00:05:39]} {[%emt 00:01:09]} 25. Qxg6 {[%clk
00:04:15]} {[%emt 00:02:29]} Qf4+ {[%clk 00:06:00]} {[%emt 00:00:09]} 26. Kb1
{[%clk 00:04:31]} {[%emt 00:00:14]} Bf5 {[%clk 00:06:04]} {[%emt 00:00:26]} 27.
Qb6 {[%clk 00:04:24]} {[%emt 00:00:38]} Rc8 {[%clk 00:04:47]} {[%emt 00:01:47]}
28. Nd4 {[%clk 00:03:56]} {[%emt 00:00:58]} Rxg7 {[%clk 00:04:16]} {[%emt
00:01:00]} 29. Rf3 {[%clk 00:02:44]} {[%emt 00:01:43]} Qe4 {[%clk 00:02:58]}
{[%emt 00:01:47]} 30. Rxf5 {[%clk 00:02:37]} {[%emt 00:00:38]} Rxg2 {[%clk
00:03:08]} {[%emt 00:00:20]} 31. Rc5 {[%clk 00:02:45]} {[%emt 00:00:22]} Rd8
{[%clk 00:03:16]} {[%emt 00:00:22]} 32. a4 {[%clk 00:02:53]} {[%emt 00:00:22]}
Rd6 {[%clk 00:03:07]} {[%emt 00:00:39]} 33. Qb8+ {[%clk 00:02:27]} {[%emt
00:00:57]} Kh7 {[%clk 00:02:28]} {[%emt 00:01:09]} 34. Qf8 {[%clk 00:02:44]}
{[%emt 00:00:12]} Rf6 {[%clk 00:02:42]} {[%emt 00:00:16]} 35. Rc7 {[%clk
00:02:11]} {[%emt 00:01:03]} Qg6 {[%clk 00:03:07]} {[%emt 00:00:04]} 36. a5
{[%clk 00:02:09]} {[%emt 00:00:33]} Rgf2 {[%clk 00:02:52]} {[%emt 00:00:46]} 37.
Ka2 {[%clk 00:01:57]} {[%emt 00:00:41]} Qh5 {[%clk 00:02:41]} {[%emt 00:01:20]}
38. Rd3 {[%clk 00:01:57]} {[%emt 00:00:30]} Qxa5+ {[%clk 00:02:52]} {[%emt
00:00:18]} 0-1

[Event "NJSK 2024 A"]
[Site "Groningen, Netherlands"]
[Date "2024.04.28"]
[Round "2.1"]
[White "Slagboom, Leandro"]
[Black "Moskalets, Sofiia"]
[Result "1/2-1/2"]
[TimeControl "90min/40moves + 30min + 30sec/move"]
[WhiteElo "2326"]
[BlackElo "2050"]

1. d4 {[%emt 00:10:07]} d5 {[%clk 01:20:13]} {[%emt 00:00:43]} 2. c4 {[%clk
01:31:14]} {[%emt 00:00:14]} e6 {[%clk 01:20:37]} {[%emt 00:00:05]} 3. Nc3
{[%clk 01:31:37]} {[%emt 00:00:07]} c5 {[%clk 01:21:03]} {[%emt 00:00:05]} 4.
e3 {[%clk 01:30:37]} {[%emt 00:01:29]} Nf6 {[%clk 01:19:26]} {[%emt 00:02:07]}
5. Nf3 {[%clk 01:30:52]} {[%emt 00:00:15]} a6 {[%clk 01:19:28]} {[%emt
00:00:28]} 6. dxc5 {[%clk 01:20:10]} {[%emt 00:11:12]} Bxc5 {[%clk 01:19:37]}
{[%emt 00:00:21]} 7. a3 {[%clk 01:19:21]} {[%emt 00:01:19]} dxc4 {[%clk
01:14:02]} {[%emt 00:06:05]} 8. Qxd8+ {[%clk 01:19:16]} {[%emt 00:00:35]} Kxd8
{[%clk 01:14:28]} {[%emt 00:00:05]} 9. Ne5 {[%clk 01:15:36]} {[%emt 00:04:10]}
Ke7 {[%clk 01:12:42]} {[%emt 00:02:15]} 10. Nxc4 {[%clk 01:13:56]} {[%emt
00:02:10]} b5 {[%clk 01:09:44]} {[%emt 00:03:28]} 11. b4 {[%clk 01:10:54]}
{[%emt 00:03:32]} Ba7 {[%clk 01:01:07]} {[%emt 00:09:07]} 12. Na5 {[%clk
01:10:42]} {[%emt 00:00:42]} Bb6 {[%clk 00:59:29]} {[%emt 00:02:09]} 13. Nb3
{[%clk 01:03:37]} {[%emt 00:07:34]} Nc6 {[%clk 00:55:24]} {[%emt 00:04:36]} 14.
Bb2 {[%clk 00:56:13]} {[%emt 00:07:53]} Bb7 {[%clk 00:53:06]} {[%emt 00:02:48]}
15. Be2 {[%clk 00:56:08]} {[%emt 00:00:35]} Rhd8 {[%clk 00:47:05]} {[%emt
00:06:31]} 16. O-O {[%clk 00:53:57]} {[%emt 00:02:41]} Nd7 {[%clk 00:40:51]}
{[%emt 00:06:44]} 17. a4 {[%clk 00:46:06]} {[%emt 00:08:21]} bxa4 {[%clk
00:29:28]} {[%emt 00:11:54]} 18. Nxa4 {[%clk 00:45:18]} {[%emt 00:01:17]} Ba7
{[%clk 00:26:17]} {[%emt 00:03:42]} 19. Rfc1 {[%clk 00:36:59]} {[%emt
00:08:48]} Rac8 {[%clk 00:22:59]} {[%emt 00:03:48]} 20. Kf1 {[%clk 00:30:13]}
{[%emt 00:07:16]} f6 {[%clk 00:17:13]} {[%emt 00:06:16]} 21. Nac5 {[%clk
00:24:55]} {[%emt 00:05:48]} Bxc5 {[%clk 00:15:11]} {[%emt 00:02:33]} 22. bxc5
{[%clk 00:25:08]} {[%emt 00:00:16]} Ra8 {[%clk 00:13:59]} {[%emt 00:01:42]} 23.
Bc3 {[%clk 00:24:31]} {[%emt 00:01:07]} Rdc8 {[%clk 00:10:05]} {[%emt
00:04:25]} 24. Ra4 {[%clk 00:19:43]} {[%emt 00:05:18]} Kf7 {[%clk 00:08:00]}
{[%emt 00:02:34]} 25. Bf3 {[%clk 00:16:13]} {[%emt 00:04:00]} Rab8 {[%clk
00:08:02]} {[%emt 00:00:29]} 26. Rd1 {[%clk 00:10:59]} {[%emt 00:05:43]} Nce5
{[%clk 00:06:29]} {[%emt 00:02:03]} 27. Bxb7 {[%clk 00:10:23]} {[%emt
00:01:06]} Rxb7 {[%clk 00:06:55]} {[%emt 00:00:04]} 28. Na5 {[%clk 00:08:38]}
{[%emt 00:02:16]} Rbc7 {[%clk 00:06:01]} {[%emt 00:01:24]} 29. Bxe5 {[%clk
00:05:04]} {[%emt 00:04:03]} Nxe5 {[%clk 00:05:50]} {[%emt 00:00:41]} 30. Nb3
{[%clk 00:04:33]} {[%emt 00:01:01]} Rb8 {[%clk 00:05:16]} {[%emt 00:01:03]}
1/2-1/2

[Event "NJSK 2024 A"]
[Site "Groningen, Netherlands"]
[Date "2024.04.28"]
[Round "2.2"]
[White "Khatniuk, Anastasiia"]
[Black "Labruyere, Roger"]
[Result "0-1"]
[TimeControl "90min/40moves + 30min + 30sec/move"]
[WhiteElo "2012"]
[BlackElo "2267"]

1. e4 {[%clk 01:30:57]} {[%emt 00:00:03]} c5 {[%clk 01:30:46]} {[%emt
00:00:14]} 2. Nf3 {[%clk 01:31:20]} {[%emt 00:00:06]} d6 {[%clk 01:31:11]}
{[%emt 00:00:06]} 3. Bb5+ {[%clk 01:31:42]} {[%emt 00:00:08]} Nd7 {[%clk
01:29:23]} {[%emt 00:02:18]} 4. a4 {[%clk 01:31:15]} {[%emt 00:00:57]} a6
{[%clk 01:29:45]} {[%emt 00:00:08]} 5. Bc4 {[%clk 01:31:24]} {[%emt 00:00:21]}
Ngf6 {[%clk 01:29:25]} {[%emt 00:00:50]} 6. Nc3 {[%clk 01:29:28]} {[%emt
00:02:26]} b6 {[%clk 01:29:41]} {[%emt 00:00:14]} 7. d4 {[%clk 01:18:27]}
{[%emt 00:11:30]} e6 {[%clk 01:29:59]} {[%emt 00:00:13]} 8. O-O {[%clk
01:10:12]} {[%emt 00:08:45]} Bb7 {[%clk 01:27:32]} {[%emt 00:02:57]} 9. d5
{[%clk 01:00:00]} {[%emt 00:10:41]} e5 {[%clk 01:25:46]} {[%emt 00:02:17]} 10.
g3 {[%clk 00:55:29]} {[%emt 00:05:01]} g6 {[%clk 01:23:39]} {[%emt 00:02:37]}
11. Kg2 {[%clk 00:48:59]} {[%emt 00:06:59]} Bg7 {[%clk 01:20:35]} {[%emt
00:03:34]} 12. Bg5 {[%clk 00:42:00]} {[%emt 00:07:29]} h6 {[%clk 01:20:03]}
{[%emt 00:01:03]} 13. Bd2 {[%clk 00:42:18]} {[%emt 00:00:12]} O-O {[%clk
01:19:10]} {[%emt 00:01:22]} 14. Be2 {[%clk 00:40:34]} {[%emt 00:02:15]} Ne8
{[%clk 01:10:05]} {[%emt 00:09:34]} 15. Nh4 {[%clk 00:36:52]} {[%emt 00:04:12]}
Kh7 {[%clk 01:06:38]} {[%emt 00:03:58]} 16. Bd3 {[%clk 00:35:12]} {[%emt
00:02:10]} Bf6 {[%clk 00:59:55]} {[%emt 00:07:12]} 17. Nf3 {[%clk 00:33:15]}
{[%emt 00:02:28]} Nc7 {[%clk 00:50:35]} {[%emt 00:09:50]} 18. Qe2 {[%clk
00:30:20]} {[%emt 00:03:25]} Re8 {[%clk 00:43:55]} {[%emt 00:07:09]} 19. Qe3
{[%clk 00:25:30]} {[%emt 00:05:20]} Bg7 {[%clk 00:43:25]} {[%emt 00:01:00]} 20.
Nh4 {[%clk 00:23:13]} {[%emt 00:02:48]} Nf6 {[%clk 00:41:39]} {[%emt 00:02:16]}
21. h3 {[%clk 00:20:01]} {[%emt 00:03:42]} Bc8 {[%clk 00:40:48]} {[%emt
00:01:20]} 22. Kh2 {[%clk 00:20:06]} {[%emt 00:00:26]} Qd7 {[%clk 00:38:02]}
{[%emt 00:03:16]} 23. g4 {[%clk 00:20:01]} {[%emt 00:00:34]} Qd8 {[%clk
00:33:53]} {[%emt 00:04:39]} 24. Qg3 {[%clk 00:19:26]} {[%emt 00:01:04]} Rb8
{[%clk 00:33:49]} {[%emt 00:00:36]} 25. Ng2 {[%clk 00:17:43]} {[%emt 00:02:12]}
b5 {[%clk 00:33:44]} {[%emt 00:00:36]} 26. axb5 {[%clk 00:18:06]} {[%emt
00:00:07]} axb5 {[%clk 00:34:13]} {[%emt 00:00:01]} 27. b3 {[%clk 00:17:55]}
{[%emt 00:00:41]} Bd7 {[%clk 00:25:22]} {[%emt 00:09:20]} 28. Ne3 {[%clk
00:11:51]} {[%emt 00:06:34]} Ra8 {[%clk 00:20:45]} {[%emt 00:05:07]} 29. Kh1
{[%clk 00:11:58]} {[%emt 00:00:23]} Rxa1 {[%clk 00:19:14]} {[%emt 00:02:01]} 30.
Rxa1 {[%clk 00:12:24]} {[%emt 00:00:04]} b4 {[%clk 00:19:37]} {[%emt 00:00:08]}
31. Ne2 {[%clk 00:12:14]} {[%emt 00:00:39]} Nfxd5 {[%clk 00:18:27]} {[%emt
00:01:41]} 32. Nxd5 {[%clk 00:10:34]} {[%emt 00:02:09]} Nxd5 {[%clk 00:18:52]}
{[%emt 00:00:06]} 33. exd5 {[%clk 00:06:35]} {[%emt 00:04:29]} e4 {[%clk
00:18:46]} {[%emt 00:00:36]} 34. Ra7 {[%clk 00:06:53]} {[%emt 00:00:12]} exd3
{[%clk 00:18:54]} {[%emt 00:00:22]} 35. Qxd3 {[%clk 00:07:19]} {[%emt
00:00:03]} Re7 {[%clk 00:17:36]} {[%emt 00:01:48]} 36. Ra6 {[%clk 00:06:26]}
{[%emt 00:01:24]} Qe8 {[%clk 00:17:34]} {[%emt 00:00:32]} 37. Ra7 {[%clk
00:05:44]} {[%emt 00:01:12]} Rxe2 {[%clk 00:17:50]} {[%emt 00:00:13]} 38. Rxd7
{[%clk 00:05:53]} {[%emt 00:00:22]} Rxd2 {[%clk 00:18:15]} {[%emt 00:00:04]}
0-1

[Event "NJSK 2024 A"]
[Site "Groningen, Netherlands"]
[Date "2024.04.28"]
[Round "2.3"]
[White "Bakija, Alan"]
[Black "Van Hesselingen, Guido"]
[Result "1-0"]
[TimeControl "90min/40moves + 30min + 30sec/move"]
[WhiteElo "2101"]
[BlackElo "2016"]

1. Nf3 {[%clk 01:30:57]} {[%emt 00:00:02]} d5 {[%clk 01:30:43]} {[%emt
00:00:18]} 2. g3 {[%clk 01:31:23]} {[%emt 00:00:04]} Nf6 {[%clk 01:30:34]}
{[%emt 00:00:39]} 3. Bg2 {[%clk 01:31:46]} {[%emt 00:00:06]} e6 {[%clk
01:30:22]} {[%emt 00:00:43]} 4. O-O {[%clk 01:32:10]} {[%emt 00:00:06]} Be7
{[%clk 01:29:46]} {[%emt 00:01:06]} 5. d4 {[%clk 01:32:34]} {[%emt 00:00:05]}
O-O {[%clk 01:29:57]} {[%emt 00:00:19]} 6. c4 {[%clk 01:33:01]} {[%emt
00:00:03]} dxc4 {[%clk 01:30:02]} {[%emt 00:00:26]} 7. Qc2 {[%clk 01:33:25]}
{[%emt 00:00:05]} a6 {[%clk 01:29:37]} {[%emt 00:00:56]} 8. a4 {[%clk
01:33:42]} {[%emt 00:00:13]} Bd7 {[%clk 01:28:00]} {[%emt 00:02:06]} 9. Qxc4
{[%clk 01:33:59]} {[%emt 00:00:13]} Bc6 {[%clk 01:28:15]} {[%emt 00:00:16]} 10.
Bg5 {[%clk 01:34:20]} {[%emt 00:00:08]} Bd5 {[%clk 01:25:53]} {[%emt 00:02:52]}
11. Qc2 {[%clk 01:34:43]} {[%emt 00:00:07]} Be4 {[%clk 01:26:16]} {[%emt
00:00:07]} 12. Qc1 {[%clk 01:35:07]} {[%emt 00:00:06]} h6 {[%clk 01:20:50]}
{[%emt 00:05:57]} 13. Bxf6 {[%clk 01:35:29]} {[%emt 00:00:07]} Bxf6 {[%clk
01:21:15]} {[%emt 00:00:05]} 14. Rd1 {[%clk 01:35:43]} {[%emt 00:00:16]} Nc6
{[%clk 01:07:02]} {[%emt 00:14:43]} 15. Nbd2 {[%clk 01:35:06]} {[%emt
00:01:07]} Bxf3 {[%clk 01:02:31]} {[%emt 00:05:02]} 16. Nxf3 {[%clk 01:34:59]}
{[%emt 00:00:36]} Qe7 {[%clk 01:02:37]} {[%emt 00:00:24]} 17. e3 {[%clk
01:13:06]} {[%emt 00:22:23]} e5 {[%clk 00:38:06]} {[%emt 00:25:01]} 18. d5
{[%clk 01:06:38]} {[%emt 00:06:58]} Nb4 {[%clk 00:38:08]} {[%emt 00:00:28]} 19.
Nd2 {[%clk 01:02:03]} {[%emt 00:05:05]} c6 {[%clk 00:29:15]} {[%emt 00:09:23]}
20. dxc6 {[%clk 01:00:47]} {[%emt 00:01:46]} Nxc6 {[%clk 00:29:16]} {[%emt
00:00:29]} 21. Ne4 {[%clk 00:56:01]} {[%emt 00:05:16]} Rfd8 {[%clk 00:27:55]}
{[%emt 00:01:51]} 22. Qc5 {[%clk 00:52:32]} {[%emt 00:03:59]} Qe6 {[%clk
00:21:39]} {[%emt 00:06:46]} 23. Qb6 {[%clk 00:49:06]} {[%emt 00:03:56]} Be7
{[%clk 00:20:15]} {[%emt 00:01:54]} 24. Nc3 {[%clk 00:49:00]} {[%emt 00:00:35]}
Rxd1+ {[%clk 00:13:47]} {[%emt 00:06:58]} 25. Rxd1 {[%clk 00:48:54]} {[%emt
00:00:37]} Nd8 {[%clk 00:14:08]} {[%emt 00:00:09]} 26. Nd5 {[%clk 00:39:01]}
{[%emt 00:10:23]} Bf8 {[%clk 00:12:59]} {[%emt 00:01:39]} 27. Be4 {[%clk
00:22:06]} {[%emt 00:17:25]} Rc8 {[%clk 00:11:18]} {[%emt 00:02:11]} 28. Qxe6
{[%clk 00:22:10]} {[%emt 00:00:26]} Nxe6 {[%clk 00:11:02]} {[%emt 00:00:46]} 29.
Nb6 {[%clk 00:22:34]} {[%emt 00:00:06]} Rd8 {[%clk 00:10:59]} {[%emt 00:00:34]}
30. Rxd8 {[%clk 00:05:01]} {[%emt 00:18:02]} Nxd8 {[%clk 00:11:23]} {[%emt
00:00:06]} 31. Nc4 {[%clk 00:05:23]} {[%emt 00:00:09]} f6 {[%clk 00:07:25]}
{[%emt 00:04:28]} 32. Bd5+ {[%clk 00:05:47]} {[%emt 00:00:05]} Kh7 {[%clk
00:07:37]} {[%emt 00:00:18]} 33. Kf1 {[%clk 00:06:06]} {[%emt 00:00:11]} Bc5
{[%clk 00:03:14]} {[%emt 00:04:53]} 34. Ke2 {[%clk 00:05:11]} {[%emt 00:01:25]}
b6 {[%clk 00:03:05]} {[%emt 00:00:38]} 35. Kd3 {[%clk 00:05:12]} {[%emt
00:00:30]} Kg6 {[%clk 00:01:32]} {[%emt 00:02:04]} 36. Kc3 {[%clk 00:04:22]}
{[%emt 00:01:20]} a5 {[%clk 00:01:14]} {[%emt 00:00:48]} 37. Na3 {[%clk
00:02:30]} {[%emt 00:02:21]} Nf7 {[%clk 00:01:00]} {[%emt 00:00:44]} 38. Bxf7+
{[%clk 00:00:36]} {[%emt 00:02:24]} Kxf7 {[%clk 00:01:25]} {[%emt 00:00:04]} 39.
Kc4 {[%clk 00:00:39]} {[%emt 00:00:29]} Ke6 {[%clk 00:01:06]} {[%emt 00:00:48]}
40. Kb5 {[%clk 00:00:47]} {[%emt 00:00:22]} Kd5 {[%clk 00:00:33]} {[%emt
00:01:03]} 41. Nc4 {[%clk 00:28:22]} {[%emt 00:02:55]} Ke4 {[%clk 00:24:35]}
{[%emt 00:06:27]} 42. Nxb6 {[%clk 00:28:40]} {[%emt 00:00:12]} Bb4 {[%clk
00:24:23]} {[%emt 00:00:43]} 43. Nc4 {[%clk 00:28:06]} {[%emt 00:01:04]} Be1
{[%clk 00:22:11]} {[%emt 00:02:42]} 44. Nxa5 {[%clk 00:25:43]} {[%emt
00:02:53]} Bxf2 {[%clk 00:18:31]} {[%emt 00:04:10]} 45. Nc4 {[%clk 00:25:56]}
{[%emt 00:00:17]} f5 {[%clk 00:18:09]} {[%emt 00:00:52]} 46. a5 {[%clk
00:23:50]} {[%emt 00:02:36]} f4 {[%clk 00:16:50]} {[%emt 00:01:49]} 47. gxf4
{[%clk 00:22:30]} {[%emt 00:01:50]} exf4 {[%clk 00:17:15]} {[%emt 00:00:05]} 48.
a6 {[%clk 00:14:46]} {[%emt 00:08:14]} fxe3 {[%clk 00:06:47]} {[%emt 00:10:58]}
49. a7 {[%clk 00:15:04]} {[%emt 00:00:12]} e2 {[%clk 00:07:14]} {[%emt
00:00:03]} 50. a8=Q+ {[%clk 00:15:30]} {[%emt 00:00:05]} Kd4 {[%clk 00:07:36]}
{[%emt 00:00:07]} 51. Qa7+ {[%clk 00:15:50]} {[%emt 00:00:10]} 1-0